lending/lending_fUSD_20240928
["ID","MTS","AMOUNT","RATE_DAILY","PERIOD"]
[339394261,1727562632357,-37506.17277162,0.000129,2]
[339394262,1727562632368,-5360.88677165,0.000129,2]
[339394263,1727562632379,-919.70999,0.000129,2]
[339394264,1727562632391,-300.0,0.000129,2]
[339394265,1727562632402,-784.98522457,0.000129,2]
[339394266,1727562632413,-4587.1377089,0.000129,2]
[339394267,1727562632424,-515.63660001,0.000129,2]
[339394268,1727562632435,-347.96815075,0.000129,2]
[339394269,1727562632446,-13313.90669891,0.000129,2]
[339394270,1727562632457,-1160.00238867,0.000129,2]
[339394271,1727562632468,-3282.66146261,0.000129,2]
[339394272,1727562632479,-10788.88930125,0.000129,2]
[339394273,1727562632490,-432.92,0.000129,2]
[339394274,1727562632501,-392.16304759,0.000129,2]
[339394275,1727562632512,-404.4999995,0.000129,2]
[339394276,1727562632523,-258.45333536,0.000129,2]
[339394277,1727562632535,-355.41834579,0.000129,2]
[339394278,1727562632546,-6200.37173994,0.000129,2]
[339394279,1727562632557,-604.51167939,0.000129,2]
[339394281,1727562637688,-321.98315079,0.000128,2]
[339394282,1727562637698,-437.2658416,0.000129,2]
[339394283,1727562637709,-2820.66603228,0.000129,2]
[339394284,1727562637719,-36971.8007599,0.000129,2]
[339394285,1727562637730,-1656.07732759,0.000129,2]
[339394286,1727562637741,-18380.47787291,0.000129,2]
[339394287,1727562637765,-1682.74138119,0.000129,2]
[339394288,1727562637844,-874.83664324,0.000129,2]
[339394289,1727562637856,-325.88,0.000129,2]
[339394290,1727562637990,-437.24083122,0.000129,2]
[339394298,1727562640066,-40424.31189806,0.000129,2]
[339394342,1727562665212,500.0,8.972e-05,2]
[339394343,1727562668274,900.0,0.00010068,2]
[339394344,1727562682241,630.02,0.0001005,2]
[339394345,1727562686996,500.0,0.00010068,2]
[339394346,1727562687942,700.0,0.00010068,2]
[339394347,1727562709834,152.47,0.00013918,30]
[339394348,1727562797718,200.0,0.00021,120]
[339394349,1727562998542,150.0,0.00011112,2]
[339394350,1727563023699,183.25,0.00010959,2]
[339394351,1727563125371,1050.0,0.00011,2]
[339394352,1727563195491,700.0,0.00010068,2]
[339394353,1727563203135,150.0,0.00010068,2]
[339394354,1727563203352,150.0,0.00010068,2]
[339394355,1727563254955,900.0,0.00010068,2]
[339394356,1727563265982,618.92,9.544e-05,2]
[339394357,1727563389568,152.47,0.00013918,30]
[339394358,1727563566656,181.4,0.00010959,2]
[339394359,1727563621293,11059.98896884,0.0001,2]
[339394369,1727563808702,608.2,9.285e-05,2]
[339394370,1727563810366,563.0,9.544e-05,2]
[339394371,1727563831863,-1050.79972031,0.00011187,2]
[339394372,1727563831872,-181.35,0.00011203,2]
[339394373,1727563831882,-346.68,0.00011255,2]
[339394374,1727563831892,-250.0,0.00011287,2]
[339394375,1727563831901,-1335.92028036,0.00011296,2]
[339394376,1727563831913,-164.07971964,0.00011296,2]
[339394377,1727563831922,-250.0,0.00011322,2]
[339394378,1727563831931,-290.84289468,0.00011337,2]
[339394379,1727563831942,-9.15710532,0.00011337,2]
[339394380,1727563831951,-2129.67410168,0.00011338,2]
[339394381,1727563831962,-653.18224521,0.00011338,2]
[339394382,1727563832005,-6741.23685311,0.00011338,2]
[339394383,1727563832015,-449.57,0.00011412,2]
[339394384,1727563832027,-250.0,0.00011415,2]
[339394385,1727563832037,-750.0,0.00011417,2]
[339394386,1727563832047,-700.0,0.00011438,2]
[339394387,1727563832057,-900.0,0.00011438,2]
[339394388,1727563832066,-697.45,0.00011445,2]
[339394389,1727563832075,-273.69,0.00011449,2]
[339394390,1727563832084,-769.69,0.000115,2]
[339394391,1727563832093,-200.79766857,0.000115,2]
[339394392,1727563832103,-500.0,0.000115,2]
[339394393,1727563832116,-608.2,0.00011549,2]
[339394394,1727563832126,-150.0,0.00011589,2]
[339394395,1727563832136,-400.0,0.00011598,2]
[339394396,1727563832146,-217.06,0.00011631,2]
[339394397,1727563832157,-500.0,0.00011712,2]
[339394398,1727563832166,-185.22,0.00011726,2]
[339394399,1727563832175,-420.0,0.00012454,2]
[339394400,1727563832184,-162.237098,0.00012454,2]
[339394401,1727563832193,-822.81418323,0.000126,2]
[339394402,1727563832202,-181.35,0.00012603,2]
[339394403,1727563832212,-822.81418321,0.00012633,2]
[339394404,1727563832222,-1055.4522421,0.00012642,2]
[339394405,1727563832232,-162.237098,0.00012662,2]
[339394406,1727563832242,-822.81418321,0.00012667,2]
[339394407,1727563832252,-150.0,0.00012667,2]
[339394408,1727563832262,-663.23654318,0.0001269,2]
[339394410,1727563832271,-2462.79192693,0.00012699,2]
[339394411,1727563832279,-16180.25572646,0.000127,2]
[339394414,1727563832291,-79195.43447354,0.000127,2]
[339394415,1727563832300,-1147.5383,0.000127,2]
[339394416,1727563832309,-4401.2864,0.000127,2]
[339394417,1727563832318,-5563.47821188,0.000127,2]
[339394418,1727563832329,-1435.23226309,0.000127,2]
[339394419,1727563832340,-3100.0,0.000127,2]
[339394420,1727563832351,-3119.1372016,0.000127,2]
[339394421,1727563832361,-920.06431593,0.000127,2]
[339394422,1727563832372,-597.86703799,0.000127,2]
[339394423,1727563832383,-3987.45282922,0.000127,2]
[339394424,1727563832396,-122146.25844029,0.000127,2]
[339394425,1727563832405,-1210.8453,0.000127,2]
[339394426,1727563832414,-822.81418321,0.000127,2]
[339394427,1727563832423,-193.27341524,0.000127,2]
[339394428,1727563832432,-822.81418321,0.00012733,2]
[339394429,1727563832441,-822.81418321,0.00012767,2]
[339394430,1727563832450,-150.0,0.00012795,2]
[339394431,1727563832459,-500.0,0.00012796,2]
[339394432,1727563832468,-500.0,0.00012797,2]
[339394433,1727563832477,-2121.8735,0.000128,2]
[339394434,1727563832486,-7500.0,0.000128,2]
[339394435,1727563832496,-187.019136,0.000128,2]
[339394436,1727563832505,-5436.2611,0.000128,2]
[339394437,1727563832515,-500.0,0.000128,2]
[339394438,1727563832526,-82821.265,0.000128,2]
[339394439,1727563832536,-1231.9446,0.000128,2]
[339394440,1727563832547,-191.36,0.000128,2]
[339394441,1727563832556,-175.09543724,0.000128,2]
[339394442,1727563832566,-822.81418321,0.000128,2]
[339394443,1727563832576,-193.6877291,0.000128,2]
[339394444,1727563832585,-209.73355195,0.000128,2]
[339394445,1727563832595,-500.0,0.00012808,2]
[339394446,1727563832604,-700.0,0.00012808,2]
[339394447,1727563832614,-900.0,0.00012808,2]
[339394448,1727563832622,-175.09543723,0.00012833,2]
[339394449,1727563832631,-822.81418321,0.00012833,2]
[339394450,1727563832642,-300.623,0.00012836,2]
[339394451,1727563832652,-209.73355193,0.0001285,2]
[339394452,1727563832661,-175.09543723,0.00012867,2]
[339394453,1727563832670,-822.81418321,0.00012867,2]
[339394454,1727563832680,-162.237098,0.0001287,2]
[339394455,1727563832689,-770.93893669,0.0001287,2]
[339394456,1727563832698,-500.0,0.00012873,2]
[339394457,1727563832708,-152.41,0.00012889,2]
[339394458,1727563832718,-197.44636804,0.00012889,2]
[339394459,1727563832727,-152.41,0.0001289,2]
[339394460,1727563832737,-152.41,0.0001289,2]
[339394461,1727563832746,-152.41,0.0001289,2]
[339394462,1727563832756,-152.41,0.0001289,2]
[339394463,1727563832765,-11737.9226468,0.00012894,2]
[339394464,1727563832774,-153.8904613,0.00012894,2]
[339394465,1727563832783,-2824.3458272,0.00012894,2]
[339394466,1727563832793,-2269.2361756,0.00012894,2]
[339394467,1727563832802,-12828.30832971,0.00012897,2]
[339394468,1727563832811,-212325.44714621,0.00012899,2]
[339394469,1727563832823,-812.9464343,0.00012899,2]
[339394470,1727563838067,-6808.24853011,0.00012899,2]
[339394471,1727563838079,-1606.73102151,0.00012899,2]
[339394472,1727563838167,-9270.36894587,0.00012899,2]
[339394473,1727563838178,-513.05318471,0.00012899,2]
[339394474,1727563838190,-3181.17244625,0.00012899,2]
[339394475,1727563838288,-1989.47898931,0.00012899,2]
[339394477,1727563838299,-300.0,0.00012899,2]
[339394480,1727563839873,-770.58734516,0.00012899,2]
[339394486,1727563840330,-7347.57282332,0.00012899,2]
[339394487,1727563840341,-19186.88635764,0.00012899,2]
[339394489,1727563840367,-1389.46513254,0.00012899,2]
[339394491,1727563840378,-2775.94000765,0.00012899,2]
[339394493,1727563840390,-1669.33501762,0.00012899,2]
[339394564,1727563843061,-264.33,0.00012899,2]
[339394565,1727563843167,-8352.19075396,0.00012899,2]
[339394566,1727563843177,-500.0,0.00012899,2]
[339394567,1727563843186,-500.0,0.00012899,2]
[339394568,1727563843196,-454.07570494,0.00012899,2]
[339394569,1727563843205,-499.99999999,0.00012899,2]
[339394570,1727563843215,-1000.0,0.00012899,2]
[339394571,1727563843224,-2000.0,0.000129,2]
[339394573,1727563843234,-56003.73354111,0.000129,2]
[339394574,1727563843245,-762354.57138429,0.000129,2]
[339394579,1727563845914,-336.84020246,0.000128,2]
[339394580,1727563845924,-320806.96888131,0.000129,2]
[339394583,1727563909143,700.0,0.00010068,2]
[339394584,1727563909174,500.0,0.00010068,2]
[339394585,1727563909670,600.0,0.00010068,2]
[339394586,1727563996322,200.0,0.000211,120]
[339394587,1727564066080,1129.6831687,0.00011,2]
[339394588,1727564076901,441.3011645,0.00022,120]
[339394589,1727564110750,152.47,0.00013918,30]
[339394590,1727564134512,180.7,0.00010959,2]
[339394591,1727564322844,174.54,9.404e-05,2]
[339394592,1727564440411,706.0,0.00022,120]
[339394593,1727564459109,588.35,9.851e-05,2]
[339394594,1727564633736,152.47,0.00013918,30]
[339394595,1727564784988,500.0,0.00022,120]
[339394596,1727564821615,157.23,0.00010959,2]
[339394597,1727564934438,1050.0,0.00011,2]
[339394598,1727565032260,-290.74908327,0.00011164,2]
[339394599,1727565032270,-21.41121524,0.00011338,2]
[339394600,1727565032282,-299.00615911,0.00011338,2]
[339394601,1727565032298,-2980.31533971,0.00011338,2]
[339394602,1727565032307,-700.0,0.00011438,2]
[339394603,1727565032316,-600.0,0.00011438,2]
[339394604,1727565032325,-205.7,0.00011589,2]
[339394605,1727565032334,-250.0,0.00011615,2]
[339394606,1727565032344,-794.3,0.0001165,2]
[339394607,1727565032353,-185.22,0.00011673,2]
[339394608,1727565032363,-250.0,0.00011705,2]
[339394609,1727565032372,-250.0,0.00011705,2]
[339394610,1727565032382,-594.6,0.0001174,2]
[339394611,1727565032391,-215.3,0.0001178,2]
[339394612,1727565032400,-499.99,0.0001178,2]
[339394613,1727565032410,-1000.0,0.00011925,2]
[339394614,1727565032419,-1300.0,0.00012,3]
[339394615,1727565032428,-1592.4,0.00012,2]
[339394616,1727565032437,-588.35,0.00012115,2]
[339394617,1727565032448,-32269.1725,0.000125,2]
[339394618,1727565032457,-2053.0065,0.000125,2]
[339394619,1727565032466,-1975.2353,0.000125,2]
[339394620,1727565032475,-8066.0351,0.000125,2]
[339394621,1727565032485,-943.2558,0.000125,2]
[339394622,1727565032494,-1874.1786,0.000125,2]
[339394623,1727565032504,-1886.03141398,0.000125,2]
[339394624,1727565032513,-2033.4147307,0.00012513,2]
[339394626,1727565032522,-2033.4147307,0.00012513,2]
[339394627,1727565032531,-1886.03141392,0.00012544,2]
[339394628,1727565032541,-1886.03141392,0.00012589,2]
[339394629,1727565032551,-72657.0929,0.000126,2]
[339394630,1727565032561,-472.7354,0.000126,2]
[339394631,1727565032570,-2306.9128,0.000126,2]
[339394632,1727565032579,-55128.56304562,0.000126,2]
[339394633,1727565032591,-1004.38980736,0.000126,2]
[339394634,1727565032602,-588.01158738,0.000126,2]
[339394635,1727565032614,-839.21568449,0.000126,2]
[339394636,1727565032624,-599.63924013,0.000126,2]
[339394641,1727565038183,-6343.80348218,0.000126,2]
[339394642,1727565038194,-822.49017547,0.000126,2]
[339394643,1727565038209,-1357.22542988,0.000126,2]
[339394644,1727565038220,-2084.0327375,0.000126,2]
[339394645,1727565038232,-2977.22530753,0.000126,2]
[339394646,1727565038243,-2166.78342138,0.000126,2]
[339394647,1727565038253,-3524.79836481,0.000126,2]
[339394648,1727565038267,-282.04696975,0.000126,2]
[339394649,1727565038279,-566.76354058,0.000126,2]
[339394650,1727565038296,-930.71763429,0.000126,2]
[339394651,1727565038404,-285.49172499,0.000126,2]
[339394652,1727565038415,-538.79913189,0.000126,2]
[339394653,1727565038432,-660.68832224,0.000126,2]
[339394654,1727565038443,-703.01355159,0.000126,2]
[339394655,1727565038461,-29517.04542,0.000126,2]
[339394656,1727565038472,-2355.0,0.000126,2]
[339394657,1727565038497,-2894.75,0.000126,2]
[339394658,1727565038508,-2177.28935891,0.000126,2]
[339394662,1727565040146,-2511.31265484,0.000126,2]
[339394663,1727565040158,-327.36881264,0.000126,2]
[339394664,1727565040169,-550.50093868,0.000126,2]
[339394665,1727565040180,-470.89476816,0.000126,2]
[339394666,1727565040191,-902.16144431,0.000126,2]
[339394667,1727565040202,-2482.26807113,0.000126,2]
[339394668,1727565040292,-6682.76290789,0.000126,2]
[339394669,1727565040304,-2537.03952318,0.000126,2]
[339394670,1727565040315,-4722.89728437,0.000126,2]
[339394671,1727565040327,-2929.95999997,0.000126,2]
[339394672,1727565040484,-2981.37535686,0.000126,2]
[339394673,1727565040494,-3203.72507218,0.000126,2]
[339394674,1727565040505,-939.63137312,0.000126,2]
[339394675,1727565040517,-4276.48182047,0.000126,2]
[339394676,1727565040528,-4379.11477664,0.000126,2]
[339394677,1727565040539,-807.664508,0.000126,2]
[339394678,1727565040550,-1048.43092379,0.000126,2]
[339394679,1727565040561,-270.3630258,0.000126,2]
[339394680,1727565040570,-1234.2659742,0.00012633,2]
[339394681,1727565040581,-651.76543972,0.00012633,2]
[339394682,1727565040590,-941.99206415,0.00012678,2]
[339394683,1727565040601,-442.3024674,0.00012678,2]
[339394684,1727565040613,-501.73688237,0.00012678,2]
[339394685,1727565040623,-1080.0,0.00012711,2]
[339394686,1727565040632,-660.62047229,0.00012722,2]
[339394687,1727565040648,-485.3980518,0.00012722,2]
[339394688,1727565040659,-740.01288983,0.00012722,2]
[339394689,1727565040668,-1886.03141392,0.00012767,2]
[339394690,1727565040677,-150.0,0.00012795,2]
[339394691,1727565040687,-500.0,0.00012797,2]
[339394692,1727565040696,-7500.0,0.00012799,2]
[339394693,1727565040705,-169.1142383,0.000128,2]
[339394694,1727565040715,-300.0,0.000128,2]
[339394695,1727565040725,-191.36001946,0.000128,2]
[339394696,1727565040735,-175.09543723,0.000128,2]
[339394697,1727565040744,-812.88592352,0.000128,2]
[339394698,1727565040754,-200.74567328,0.000128,2]
[339394699,1727565040763,-500.0,0.00012808,2]
[339394700,1727565040773,-700.0,0.00012808,2]
[339394701,1727565040783,-600.0,0.00012808,2]
[339394702,1727565040793,-1886.03141392,0.00012811,2]
[339394703,1727565040802,-169.1142383,0.00012814,2]
[339394704,1727565040813,-812.88592349,0.00012825,2]
[339394705,1727565040823,-169.1142383,0.00012829,2]
[339394707,1727565040832,-169.1142383,0.00012843,2]
[339394709,1727565040842,-298.157,0.00012844,2]
[339394711,1727565040852,-812.88592349,0.0001285,2]
[339394713,1727565040863,-1886.03141392,0.00012856,2]
[339394715,1727565040872,-169.1142383,0.00012857,2]
[339394717,1727565040881,-169.1142383,0.00012871,2]
[339394719,1727565040890,-812.88592349,0.00012875,2]
[339394721,1727565040899,-169.1142383,0.00012886,2]
[339394723,1727565040909,-199.15185173,0.00012889,2]
[339394724,1727565040918,-152.51,0.00012889,2]
[339394726,1727565040928,-2038.2386537,0.00012894,2]
[339394728,1727565040938,-7357.5433756,0.00012894,2]
[339394730,1727565040947,-769.45230709,0.00012894,2]
[339394732,1727565040957,-175.6880842,0.00012897,2]
[339394734,1727565040966,-527.0642526,0.00012897,2]
[339394736,1727565040976,-500.0,0.00012898,2]
[339394738,1727565040985,-500.0,0.00012898,2]
[339394740,1727565040995,-500.0,0.00012898,2]
[339394742,1727565041004,-325.747858,0.00012898,2]
[339394743,1727565041014,-1000.0,0.00012899,6]
[339394745,1727565041023,-1000.0,0.00012899,2]
[339394747,1727565041032,-501.01391627,0.00012899,2]
[339394749,1727565041042,-500.93162218,0.00012899,2]
[339394751,1727565041051,-596.77029385,0.00012899,2]
[339394753,1727565041065,-500.66952783,0.00012899,2]
[339394755,1727565041074,-501.02506166,0.00012899,2]
[339394756,1727565041083,-501.01297787,0.00012899,2]
[339394758,1727565041092,-500.0,0.00012899,2]
[339394760,1727565041102,-500.0,0.00012899,2]
[339394762,1727565041111,-500.0,0.00012899,2]
[339394764,1727565041120,-500.0,0.00012899,2]
[339394766,1727565041130,-500.0,0.00012899,2]
[339394768,1727565041139,-500.0,0.00012899,2]
[339394770,1727565041149,-500.0,0.00012899,2]
[339394772,1727565041159,-500.0,0.00012899,2]
[339394774,1727565041168,-500.0,0.00012899,2]
[339394776,1727565041177,-517.52,0.00012899,2]
[339394777,1727565041187,-381.47944152,0.00012899,2]
[339394779,1727565041196,-500.0,0.00012899,2]
[339394781,1727565041207,-500.0,0.00012899,2]
[339394783,1727565041217,-500.0,0.00012899,2]
[339394785,1727565041227,-500.0,0.00012899,2]
[339394787,1727565041237,-500.0,0.00012899,2]
[339394789,1727565041246,-500.0,0.00012899,2]
[339394791,1727565041256,-500.0,0.00012899,2]
[339394793,1727565041265,-501.01527294,0.00012899,2]
[339394794,1727565041275,-500.0,0.00012899,2]
[339394796,1727565041284,-4.20103934,0.00012899,2]
[339394798,1727565041297,-496.15499393,0.00012899,2]
[339394800,1727565041307,-500.25845595,0.00012899,2]
[339394802,1727565041316,-500.0,0.00012899,2]
[339394804,1727565041325,-500.0,0.00012899,2]
[339394806,1727565041334,-144.84383089,0.00012899,2]
[339394808,1727565041346,-414.64905579,0.00012899,2]
[339394810,1727565041355,-215.6093576,0.00012899,2]
[339394812,1727565041366,-285.0659457,0.00012899,2]
[339394814,1727565041375,-500.37038669,0.00012899,2]
[339394816,1727565041385,-500.0,0.00012899,2]
[339394818,1727565041397,-500.0,0.00012899,2]
[339394820,1727565041407,-500.0,0.00012899,2]
[339394821,1727565041417,-500.0,0.00012899,2]
[339394823,1727565041426,-500.0,0.00012899,2]
[339394825,1727565041436,-556.08397345,0.00012899,2]
[339394827,1727565041446,-500.217024,0.00012899,2]
[339394829,1727565041456,-500.47589792,0.00012899,2]
[339394848,1727565041631,-500.0,0.00012899,2]
[339394850,1727565041641,-500.0,0.00012899,2]
[339394852,1727565041651,-500.0,0.00012899,2]
[339394854,1727565041660,-500.0,0.00012899,2]
[339394856,1727565041669,-500.0,0.00012899,2]
[339394857,1727565041678,-506.08820889,0.00012899,2]
[339394859,1727565041687,-500.0,0.00012899,2]
[339394861,1727565041696,-500.0,0.00012899,2]
[339394863,1727565041707,-500.0,0.00012899,2]
[339394865,1727565041717,-500.0,0.00012899,2]
[339394867,1727565041726,-500.0,0.00012899,2]
[339394869,1727565041735,-500.0,0.00012899,2]
[339394871,1727565041745,-500.68315568,0.00012899,2]
[339394873,1727565041754,-500.0,0.00012899,2]
[339394874,1727565041763,-500.0,0.00012899,2]
[339394876,1727565041772,-500.0,0.00012899,2]
[339394878,1727565041783,-500.0,0.00012899,2]
[339394880,1727565041793,-500.0,0.00012899,2]
[339394882,1727565041803,-500.0,0.00012899,2]
[339394884,1727565041813,-500.0,0.00012899,2]
[339394886,1727565041822,-563.39340832,0.00012899,2]
[339394888,1727565041832,-500.0,0.00012899,2]
[339394890,1727565041841,-500.0,0.00012899,2]
[339394892,1727565041850,-500.0,0.00012899,2]
[339394894,1727565041860,-505.64693491,0.00012899,2]
[339394896,1727565041869,-500.0,0.00012899,2]
[339394898,1727565041879,-500.0,0.00012899,2]
[339394899,1727565041888,-401.51714247,0.00012899,2]
[339394901,1727565041897,-500.33905213,0.00012899,2]
[339394903,1727565041906,-500.0,0.00012899,2]
[339394905,1727565041916,-500.0,0.00012899,2]
[339394907,1727565041925,-500.0,0.00012899,2]
[339394909,1727565041934,-500.0,0.00012899,2]
[339394911,1727565041944,-500.0,0.00012899,2]
[339394912,1727565041954,-500.0,0.00012899,2]
[339394914,1727565041963,-500.0,0.00012899,2]
[339394916,1727565041972,-501.87621457,0.00012899,2]
[339394918,1727565041982,-500.0,0.00012899,2]
[339394920,1727565041991,-500.0,0.00012899,2]
[339394922,1727565042000,-500.0,0.00012899,2]
[339394924,1727565042010,-507.33151032,0.00012899,2]
[339394926,1727565042019,-500.54656356,0.00012899,2]
[339394928,1727565042029,-500.0,0.00012899,2]
[339394930,1727565042038,-500.0,0.00012899,2]
[339394931,1727565042047,-505.78309495,0.00012899,2]
[339394932,1727565042058,-504.84887263,0.00012899,2]
[339394935,1727565042070,-501.05529061,0.00012899,2]
[339394937,1727565042081,-500.0,0.00012899,2]
[339394939,1727565042091,-500.0,0.00012899,2]
[339394941,1727565042104,-500.0,0.00012899,2]
[339394943,1727565042113,-500.0,0.00012899,2]
[339394945,1727565042123,-500.0,0.00012899,2]
[339394947,1727565042133,-500.0,0.00012899,2]
[339394948,1727565042143,-500.0,0.00012899,2]
[339394950,1727565042153,-500.0,0.00012899,2]
[339394952,1727565042162,-500.0,0.00012899,2]
[339394954,1727565042172,-512.11897641,0.00012899,2]
[339394955,1727565042182,-500.0,0.00012899,2]
[339394956,1727565042191,-500.0,0.00012899,2]
[339394957,1727565042202,-459.84964906,0.00012899,2]
[339394958,1727565042213,-500.52024821,0.00012899,2]
[339394959,1727565042222,-500.0,0.00012899,2]
[339394960,1727565042232,-500.0,0.00012899,2]
[339394961,1727565042241,-500.0,0.00012899,2]
[339394962,1727565042250,-490.84810457,0.00012899,2]
[339394963,1727565042259,-500.0,0.00012899,2]
[339394964,1727565042277,-500.0,0.00012899,2]
[339394965,1727565042289,-500.0,0.00012899,2]
[339394966,1727565042298,-620.2140356,0.00012899,2]
[339394967,1727565042308,-500.0,0.00012899,2]
[339394968,1727565042318,-500.0,0.00012899,2]
[339394969,1727565042328,-500.0,0.00012899,2]
[339394970,1727565042338,-500.0,0.00012899,2]
[339394971,1727565042348,-500.0,0.00012899,2]
[339394972,1727565042359,-500.0,0.00012899,2]
[339394973,1727565042368,-506.95342244,0.00012899,2]
[339394974,1727565042378,-500.0,0.00012899,2]
[339394975,1727565042387,-500.0,0.00012899,2]
[339394976,1727565042397,-500.0,0.00012899,2]
[339394977,1727565042407,-457.08965511,0.00012899,2]
[339394978,1727565042417,-500.0,0.00012899,2]
[339394979,1727565042426,-500.0,0.00012899,2]
[339394980,1727565042436,-500.0,0.00012899,2]
[339394981,1727565042446,-500.0,0.00012899,2]
[339394982,1727565042457,-500.0,0.00012899,2]
[339394983,1727565042466,-500.0,0.00012899,2]
[339394984,1727565042476,-500.0,0.00012899,2]
[339394985,1727565042485,-500.0,0.00012899,2]
[339394986,1727565042495,-500.0,0.00012899,2]
[339394987,1727565042505,-500.0,0.00012899,2]
[339394988,1727565042514,-501.84596926,0.00012899,2]
[339394989,1727565042524,-500.0,0.00012899,2]
[339394990,1727565042533,-500.0,0.00012899,2]
[339394991,1727565042543,-500.0,0.00012899,2]
[339394992,1727565042553,-500.0,0.00012899,2]
[339394993,1727565042562,-500.0,0.00012899,2]
[339394994,1727565042572,-614.09443935,0.00012899,2]
[339394995,1727565042581,-501.02762006,0.00012899,2]
[339394996,1727565042591,-500.0,0.00012899,2]
[339394997,1727565042600,-500.0,0.00012899,2]
[339394998,1727565042609,-500.0,0.00012899,2]
[339394999,1727565042619,-500.0,0.00012899,2]
[339395000,1727565042628,-500.0,0.00012899,2]
[339395001,1727565042638,-180.18922285,0.00012899,2]
[339395002,1727565042648,-500.9074921,0.00012899,2]
[339395003,1727565042657,-500.0,0.00012899,2]
[339395004,1727565042666,-566.10276982,0.00012899,2]
[339395005,1727565042676,-512.85007719,0.00012899,2]
[339395006,1727565042686,-607.75450366,0.00012899,2]
[339395007,1727565042696,-500.0,0.00012899,2]
[339395008,1727565042706,-500.0,0.00012899,2]
[339395009,1727565042716,-500.0,0.00012899,2]
[339395010,1727565042727,-500.0,0.00012899,2]
[339395011,1727565042736,-500.0,0.00012899,2]
[339395012,1727565042746,-500.0,0.00012899,2]
[339395013,1727565042755,-500.0,0.00012899,2]
[339395014,1727565042765,-500.28689821,0.00012899,2]
[339395015,1727565042775,-500.0,0.00012899,2]
[339395016,1727565042784,-251.38850231,0.00012899,2]
[339395017,1727565042794,-500.0,0.00012899,2]
[339395018,1727565042804,-500.0,0.00012899,2]
[339395019,1727565042813,-500.0,0.00012899,2]
[339395020,1727565042823,-500.0,0.00012899,2]
[339395021,1727565042832,-500.0,0.00012899,2]
[339395022,1727565042842,-500.0,0.00012899,2]
[339395023,1727565042851,-500.0,0.00012899,2]
[339395024,1727565042861,-500.0,0.00012899,2]
[339395025,1727565042871,-500.0,0.00012899,2]
[339395026,1727565042880,-501.34777671,0.00012899,2]
[339395027,1727565042891,-500.0,0.00012899,2]
[339395028,1727565042900,-502.10447163,0.00012899,2]
[339395029,1727565042910,-645.25841076,0.00012899,2]
[339395030,1727565042919,-500.0,0.00012899,2]
[339395031,1727565042928,-534.69216814,0.00012899,2]
[339395032,1727565042938,-500.0,0.00012899,2]
[339395033,1727565042947,-500.0,0.00012899,2]
[339395034,1727565042959,-500.0,0.00012899,2]
[339395035,1727565042968,-500.0,0.00012899,2]
[339395036,1727565042978,-500.0,0.00012899,2]
[339395037,1727565042987,-500.76040522,0.00012899,2]
[339395039,1727565042998,-500.0,0.00012899,2]
[339395041,1727565043007,-500.0,0.00012899,2]
[339395043,1727565043016,-500.0,0.00012899,2]
[339395044,1727565043027,-500.0,0.00012899,2]
[339395046,1727565043036,-500.0,0.00012899,2]
[339395047,1727565043046,-619.51582708,0.00012899,2]
[339395048,1727565043059,-500.0,0.00012899,2]
[339395049,1727565043069,-604.47859486,0.00012899,2]
[339395050,1727565043079,-500.53364535,0.00012899,2]